fUSD/lending_fUSD_20241128
["ID","MTS","AMOUNT","RATE_DAILY","PERIOD"]
[343664799,1732811440009,-716.89999999,9.6e-05,2]
[343664861,1732811445382,-5301.58578874,9.6e-05,2]
[343664862,1732811445393,-6904.19581189,9.6e-05,2]
[343664863,1732811445548,-23019.52575676,9.6e-05,2]
[343664864,1732811445558,-26206.92798426,9.6e-05,2]
[343664865,1732811445567,-5509.87937169,9.65e-05,2]
[343664866,1732811445576,-502.8,9.721e-05,2]
[343664867,1732811445585,-420.0,9.743e-05,2]
[343664868,1732811445595,-255.0,9.869e-05,2]
[343664869,1732811445604,-163.46011792,9.888e-05,2]
[343664870,1732811445613,-1184.918,9.897e-05,2]
[343664871,1732811445622,-9103.2479,9.897e-05,2]
[343664872,1732811445631,-1000.0,9.897e-05,2]
[343664873,1732811445640,-490.54,9.897e-05,2]
[343664874,1732811445648,-504.17,9.897e-05,2]
[343664875,1732811445657,-505.3,9.897e-05,2]
[343664876,1732811445666,-494.03,9.897e-05,2]
[343664877,1732811445675,-246.357,9.899e-05,2]
[343664878,1732811445684,-633.0,9.9e-05,2]
[343664879,1732811445696,-5800.0,9.932e-05,2]
[343664880,1732811445707,-5800.0,9.941e-05,2]
[343664881,1732811445717,-150.0,9.941e-05,2]
[343664882,1732811445726,-500.0,9.945e-05,2]
[343664883,1732811445735,-150.0,9.946e-05,2]
[343664884,1732811445744,-5800.0,9.949e-05,2]
[343664885,1732811445753,-5800.0,9.958e-05,2]
[343664886,1732811445762,-500.0,9.964e-05,2]
[343664887,1732811445771,-500.0,9.965e-05,2]
[343664888,1732811445780,-1004.3,9.965e-05,2]
[343664889,1732811445789,-5800.0,9.966e-05,2]
[343664891,1732811445799,-500.0,9.972e-05,2]
[343664893,1732811445808,-500.0,9.973e-05,2]
[343664895,1732811445818,-2701.802,9.973e-05,2]
[343664897,1732811445835,-181.51,9.973e-05,2]
[343664899,1732811445849,-5800.0,9.975e-05,2]
[343664900,1732811445863,-5800.0,9.983e-05,2]
[343664901,1732811445875,-499.78,9.984e-05,2]
[343664902,1732811445885,-3902.66041124,9.99e-05,2]
[343664903,1732811445894,-3902.6604112,9.99e-05,2]
[343664904,1732811445910,-3902.6604112,9.99e-05,2]
[343664905,1732811445929,-3902.6604112,9.99e-05,2]
[343664906,1732811445948,-3902.6604112,9.99e-05,2]
[343664907,1732811445961,-3902.6604112,9.99e-05,2]
[343664908,1732811445974,-3902.6604112,9.99e-05,2]
[343664909,1732811445991,-3902.6604112,9.99e-05,2]
[343664910,1732811446007,-3902.6604112,9.99e-05,2]
[343664911,1732811446016,-5800.0,9.992e-05,2]
[343664912,1732811446025,-846.4002668,9.993e-05,2]
[343664913,1732811446035,-879.3316668,9.993e-05,2]
[343664914,1732811446044,-500.0,9.996e-05,2]
[343664915,1732811446053,-500.0,9.996e-05,2]
[343664916,1732811446062,-500.0,9.996e-05,2]
[343664917,1732811446071,-500.0,9.996e-05,2]
[343664918,1732811446080,-500.0,9.996e-05,2]
[343664919,1732811446089,-500.0,9.996e-05,2]
[343664920,1732811446098,-502.72,9.997e-05,2]
[343664921,1732811446107,-500.0,9.997e-05,2]
[343664922,1732811446116,-500.0,9.997e-05,2]
[343664923,1732811446125,-500.0,9.997e-05,2]
[343664924,1732811446134,-500.0,9.997e-05,2]
[343664925,1732811446143,-500.0,9.997e-05,2]
[343664926,1732811446152,-500.0,9.997e-05,2]
[343664927,1732811446160,-500.0,9.997e-05,2]
[343664928,1732811446170,-500.0,9.997e-05,2]
[343664929,1732811446179,-500.0,9.997e-05,2]
[343664930,1732811446188,-500.0,9.997e-05,2]
[343664931,1732811446199,-500.0,9.997e-05,2]
[343664932,1732811446208,-500.0,9.997e-05,2]
[343664933,1732811446217,-500.0,9.997e-05,2]
[343664934,1732811446226,-500.0,9.997e-05,2]
[343664935,1732811446235,-500.0,9.997e-05,2]
[343664936,1732811446245,-1406.47246129,9.998e-05,2]
[343664937,1732811446254,-200.0,9.998e-05,2]
[343664938,1732811446263,-500.0,9.998e-05,2]
[343664939,1732811446272,-344.43443341,9.998e-05,2]
[343664940,1732811446281,-235.8860418,9.998e-05,2]
[343664941,1732811446290,-500.0,9.998e-05,2]
[343664942,1732811446299,-500.0,9.998e-05,2]
[343664943,1732811446308,-500.0,9.998e-05,2]
[343664944,1732811446317,-500.0,9.998e-05,2]
[343664945,1732811446326,-500.0,9.998e-05,2]
[343664946,1732811446335,-500.0,9.998e-05,2]
[343664947,1732811446344,-500.0,9.998e-05,2]
[343664948,1732811446353,-234.92,9.998e-05,2]
[343664949,1732811446362,-500.0,9.998e-05,2]
[343664950,1732811446371,-500.0,9.998e-05,2]
[343664951,1732811446380,-500.0,9.998e-05,2]
[343664952,1732811446389,-500.0,9.998e-05,2]
[343664953,1732811446398,-500.0,9.998e-05,2]
[343664954,1732811446407,-500.0,9.998e-05,2]
[343664955,1732811446417,-185.12,9.998e-05,2]
[343664956,1732811446426,-500.0,9.998e-05,2]
[343664957,1732811446435,-500.0,9.998e-05,2]
[343664958,1732811446445,-310.6,9.998e-05,2]
[343664959,1732811446456,-355.67,9.998e-05,2]
[343664960,1732811446465,-500.0,9.998e-05,2]
[343664961,1732811446474,-320.58,9.998e-05,2]
[343664962,1732811446483,-500.0,9.998e-05,2]
[343664963,1732811446492,-500.0,9.998e-05,2]
[343664964,1732811446502,-310.67780194,9.998e-05,2]
[343664965,1732811446511,-269.72878759,9.998e-05,2]
[343664966,1732811446523,-500.0,9.998e-05,2]
[343664967,1732811446532,-500.0,9.998e-05,2]
[343664968,1732811446542,-200.0,9.998e-05,2]
[343664969,1732811446551,-500.0,9.998e-05,2]
[343664970,1732811446561,-310.26,9.998e-05,2]
[343664971,1732811446570,-500.0,9.998e-05,2]
[343664972,1732811446580,-500.0,9.998e-05,2]
[343664973,1732811446589,-1291.36,9.998e-05,2]
[343664974,1732811446599,-254.28,9.998e-05,2]
[343664975,1732811446608,-500.0,9.998e-05,2]
[343664976,1732811446617,-500.0,9.998e-05,2]
[343664977,1732811446626,-500.0,9.998e-05,2]
[343664978,1732811446636,-187.32,9.998e-05,2]
[343664979,1732811446644,-205.52,9.998e-05,2]
[343664980,1732811446654,-447.29,9.998e-05,2]
[343664981,1732811446663,-505.44116128,9.998e-05,2]
[343664982,1732811446672,-500.0,9.998e-05,2]
[343664983,1732811446682,-500.0,9.998e-05,2]
[343664984,1732811446691,-500.0,9.998e-05,2]
[343664985,1732811446702,-500.0,9.998e-05,2]
[343664986,1732811446712,-500.0,9.998e-05,2]
[343664987,1732811446721,-500.0,9.998e-05,2]
[343664988,1732811446730,-500.0,9.998e-05,2]
[343664989,1732811446739,-500.0,9.998e-05,2]
[343664990,1732811446748,-500.0,9.998e-05,2]
[343664991,1732811446757,-500.0,9.998e-05,2]
[343664992,1732811446766,-500.0,9.998e-05,2]
[343664993,1732811446775,-500.0,9.998e-05,2]
[343664994,1732811446785,-411.32895752,9.998e-05,2]
[343664995,1732811446795,-500.0,9.998e-05,2]
[343664996,1732811446803,-500.0,9.998e-05,2]
[343664997,1732811446812,-500.0,9.998e-05,2]
[343664998,1732811446822,-500.0,9.998e-05,2]
[343664999,1732811446831,-500.0,9.998e-05,2]
[343665000,1732811446840,-508.18,9.998e-05,2]
[343665001,1732811446849,-110363.03855915,9.999e-05,2]
[343665002,1732811446862,-878.53887088,9.999e-05,2]
[343665003,1732811446894,-69.3182259,9.999e-05,2]
[343665004,1732811651472,50000.0,0.00011,10]
[343665005,1732811765737,425.31,8.2e-05,7]
[343665007,1732811953480,50000.0,0.00011,10]
[343665013,1732812287456,39711.2976502,0.00011,10]
[343665014,1732812287480,10288.7023498,0.00011,10]
[343665031,1732812631801,-226.2,7.268e-05,2]
[343665032,1732812631811,-1188.43,8.219e-05,2]
[343665033,1732812631820,-160.22,8.219e-05,2]
[343665034,1732812631830,-150.0,8.965e-05,2]
[343665035,1732812631841,-250.0,8.994e-05,2]
[343665036,1732812631851,-1147.43,8.995e-05,2]
[343665037,1732812631860,-288.56,8.997e-05,2]
[343665038,1732812631870,-1000.0,8.999e-05,2]
[343665039,1732812631880,-158.9,9.589e-05,2]
[343665040,1732812631890,-194.6459,9.899e-05,2]
[343665041,1732812631900,-821.8955,9.899e-05,2]
[343665042,1732812631910,-1237.55,9.957e-05,2]
[343665043,1732812631919,-386.13,9.957e-05,2]
[343665044,1732812631929,-500.0,9.957e-05,2]
[343665045,1732812631939,-500.0,9.964e-05,2]
[343665046,1732812631950,-2487.1,9.99e-05,2]
[343665047,1732812631965,-1245.4002361,9.993e-05,2]
[343665048,1732812631975,-1198.7593896,9.993e-05,2]
[343665049,1732812631985,-27258.36825488,9.998e-05,2]
[343665144,1732812637602,-252.378,9.541e-05,2]
[343665145,1732812637771,-683.322523,9.541e-05,2]
[343665146,1732812637781,-15590.4299718,9.998e-05,2]
[343665147,1732812637831,-2928.35835523,9.998e-05,2]
[343665148,1732812637843,-2205.38340631,9.998e-05,2]
[343665149,1732812637855,-3006.11015444,9.998e-05,2]
[343665181,1732812639690,-2777.09720008,9.998e-05,2]
[343665182,1732812639702,-589.87412945,9.998e-05,2]
[343665183,1732812639716,-1143.37610264,9.998e-05,2]
[343665184,1732812639803,-37058.25943751,9.998e-05,2]
[343665185,1732812639815,-45646.560172,9.998e-05,2]
[343665186,1732812639860,-7121.81519997,9.998e-05,2]
[343665187,1732812639918,-951.98,9.998e-05,2]
[343665188,1732812639930,-17224.07424492,9.998e-05,2]
[343665308,1732812642761,-47262.83653171,9.998e-05,2]
[343665312,1732812643126,-5326.25469288,9.998e-05,2]
[343665313,1732812643135,-4453.59764051,9.998e-05,2]
[343665314,1732812643145,-1237.55,9.998e-05,2]
[343665315,1732812643155,-500.0,9.998e-05,2]
[343665316,1732812643164,-500.0,9.998e-05,2]
[343665317,1732812643174,-150.0,9.998e-05,2]
[343665318,1732812643184,-1697.26033639,9.998e-05,2]
[343665319,1732812643205,-957.9,9.998e-05,2]
[343665320,1732812643218,-491.41746897,9.998e-05,2]
[343665323,1732812645551,-507.01,9.998e-05,2]
[343665324,1732812645562,-402.52487577,9.998e-05,2]
[343665325,1732812645610,-525.65,9.998e-05,2]
[343665326,1732812645622,-410.050523,9.998e-05,2]
[343665327,1732812645669,-9638.49285301,9.998e-05,2]
[343665328,1732812645728,-9953.00984559,9.998e-05,2]
[343665329,1732812645804,-33413.93386255,9.998e-05,2]
[343665372,1732813750634,50000.0,0.00011,10]
[343665384,1732813831788,-1159.06,8.219e-05,2]
[343665385,1732813831798,-17881.34,8.887e-05,2]
[343665386,1732813831808,-93.38281572,8.887e-05,2]
[343665387,1732813831845,-148.49718428,8.887e-05,2]
[343665388,1732813831855,-3937.5,8.921e-05,2]
[343665389,1732813831864,-250.0,8.921e-05,2]
[343665390,1732813831874,-2285.09092398,8.926e-05,2]
[343665391,1732813831886,-395.5335434,8.926e-05,2]
[343665392,1732813831896,-537.03491993,8.926e-05,2]
[343665393,1732813831918,-986.26061269,8.926e-05,2]
[343665394,1732813831927,-2000.0,8.926e-05,2]
[343665395,1732813831936,-1000.0,8.944e-05,2]
[343665396,1732813831945,-217.66206601,8.961e-05,2]
[343665397,1732813831961,-1413.23793399,8.961e-05,2]
[343665398,1732813831970,-167.03,9.229e-05,2]
[343665399,1732813831979,-1073.3480787,9.5e-05,3]
[343665400,1732813831988,-400.0,9.589e-05,2]
[343665401,1732813831998,-382.0,9.798e-05,2]
[343665402,1732813832007,-2500.0,9.897e-05,2]
[343665403,1732813832016,-150.0,9.897e-05,2]
[343665404,1732813832026,-11054.3389,9.898e-05,2]
[343665405,1732813832036,-2437.9605,9.898e-05,2]
[343665406,1732813832045,-14879.7571,9.898e-05,2]
[343665407,1732813832055,-490.62,9.899e-05,2]
[343665408,1732813832064,-5800.0,9.941e-05,2]
[343665409,1732813832074,-5800.0,9.949e-05,2]
[343665410,1732813832085,-1369.93074241,9.958e-05,2]
[343665411,1732813832097,-4430.06925759,9.958e-05,2]
[343665412,1732813832106,-5071.93074241,9.966e-05,2]
[343665413,1732813832117,-728.06925759,9.966e-05,2]
[343665414,1732813832127,-2423.36178341,9.975e-05,2]
[343665415,1732813832158,-3376.63821659,9.975e-05,2]
[343665416,1732813832167,-200.0,9.975e-05,2]
[343665417,1732813832177,-2236.729,9.98e-05,2]
[343665418,1732813832186,-181.51,9.98e-05,2]
[343665419,1732813832195,-8500.0,9.981e-05,2]
[343665420,1732813832205,-5800.0,9.983e-05,2]
[343665421,1732813832214,-8500.0,9.99e-05,2]
[343665422,1732813832224,-5800.0,9.992e-05,2]
[343665423,1732813832233,-746.989732,9.993e-05,2]
[343665424,1732813832243,-776.053307,9.993e-05,2]
[343665425,1732813832253,-500.0,9.996e-05,2]
[343665426,1732813832262,-500.0,9.996e-05,2]
[343665427,1732813832272,-566.88,9.996e-05,2]
[343665428,1732813832281,-500.0,9.996e-05,2]
[343665429,1732813832291,-545.35,9.996e-05,2]
[343665430,1732813832300,-500.0,9.996e-05,2]
[343665431,1732813832310,-500.0,9.996e-05,2]
[343665432,1732813832320,-500.0,9.996e-05,2]
[343665433,1732813832331,-500.0,9.996e-05,2]
[343665434,1732813832340,-500.0,9.996e-05,2]
[343665435,1732813832350,-500.0,9.996e-05,2]
[343665436,1732813832359,-500.0,9.996e-05,2]
[343665437,1732813832368,-500.0,9.996e-05,2]
[343665438,1732813832377,-377.7740627,9.996e-05,2]
[343665439,1732813832387,-500.0,9.996e-05,2]
[343665440,1732813832396,-500.0,9.996e-05,2]
[343665441,1732813832406,-532.4,9.996e-05,2]
[343665442,1732813832416,-532.4,9.996e-05,2]
[343665443,1732813832425,-532.4,9.996e-05,2]
[343665444,1732813832435,-1367.39,9.996e-05,2]
[343665445,1732813832445,-1367.39,9.996e-05,2]
[343665446,1732813832455,-1367.39,9.996e-05,2]
[343665447,1732813832464,-500.0,9.996e-05,2]
[343665448,1732813832474,-500.0,9.996e-05,2]
[343665449,1732813832483,-500.0,9.996e-05,2]
[343665450,1732813832493,-500.0,9.996e-05,2]
[343665451,1732813832503,-1008.02,9.996e-05,2]
[343665452,1732813832512,-646.26117811,9.996e-05,2]
[343665453,1732813832522,-224.156428,9.996e-05,2]
[343665454,1732813832531,-568.414257,9.996e-05,2]
[343665455,1732813832540,-156.21777,9.996e-05,2]
[343665456,1732813832550,-568.414257,9.996e-05,2]
[343665457,1732813832559,-224.156428,9.996e-05,2]
[343665458,1732813832570,-568.414257,9.996e-05,2]
[343665459,1732813832582,-4372.87965639,9.997e-05,2]
[343665460,1732813832591,-500.0,9.997e-05,2]
[343665461,1732813832601,-500.0,9.997e-05,2]
[343665462,1732813832610,-500.0,9.997e-05,2]
[343665463,1732813832620,-643.42,9.997e-05,2]
[343665464,1732813832631,-501.7,9.997e-05,2]
[343665465,1732813832641,-500.0,9.997e-05,2]
[343665466,1732813832650,-500.0,9.997e-05,2]
[343665467,1732813832661,-500.0,9.997e-05,2]
[343665468,1732813832671,-390.22,9.997e-05,2]
[343665469,1732813832681,-500.0,9.997e-05,2]
[343665470,1732813832691,-500.0,9.997e-05,2]
[343665471,1732813832701,-500.0,9.997e-05,2]
[343665472,1732813832711,-500.0,9.997e-05,2]
[343665473,1732813832723,-500.0,9.997e-05,2]
[343665474,1732813832734,-500.0,9.997e-05,2]
[343665475,1732813832743,-500.0,9.997e-05,2]
[343665476,1732813832753,-500.0,9.997e-05,2]
[343665477,1732813832763,-631.59,9.997e-05,2]
[343665478,1732813832772,-500.0,9.997e-05,2]
[343665479,1732813832782,-500.0,9.997e-05,2]
[343665480,1732813832791,-500.0,9.997e-05,2]
[343665481,1732813832803,-634.27,9.997e-05,2]
[343665482,1732813832814,-500.0,9.997e-05,2]
[343665483,1732813832825,-513.77,9.997e-05,2]
[343665484,1732813832838,-500.0,9.997e-05,2]
[343665485,1732813832848,-295.45,9.997e-05,2]
[343665486,1732813832858,-500.0,9.997e-05,2]
[343665487,1732813832868,-178.92,9.997e-05,2]
[343665488,1732813832878,-500.0,9.997e-05,2]
[343665489,1732813832889,-500.0,9.997e-05,2]
[343665490,1732813832899,-371.35,9.997e-05,2]
[343665491,1732813832909,-505.96209432,9.997e-05,2]
[343665492,1732813832919,-500.0,9.997e-05,2]
[343665493,1732813832929,-500.0,9.997e-05,2]
[343665494,1732813832939,-168.54476049,9.997e-05,2]
[343665495,1732813832949,-500.0,9.997e-05,2]
[343665496,1732813832958,-500.0,9.997e-05,2]
[343665497,1732813832968,-500.0,9.997e-05,2]
[343665498,1732813832978,-278.58,9.997e-05,2]
[343665499,1732813832987,-340.55,9.997e-05,2]
[343665500,1732813832997,-500.0,9.997e-05,2]
[343665501,1732813833006,-500.0,9.997e-05,2]
[343665502,1732813833016,-525.67,9.997e-05,2]
[343665503,1732813833026,-500.0,9.997e-05,2]
[343665504,1732813833035,-500.0,9.997e-05,2]
[343665505,1732813833045,-500.0,9.997e-05,2]
[343665506,1732813833055,-500.0,9.997e-05,2]
[343665507,1732813833065,-546.37,9.997e-05,2]
[343665508,1732813833074,-500.0,9.997e-05,2]
[343665509,1732813833090,-505.48056341,9.997e-05,2]
[343665510,1732813833100,-500.0,9.997e-05,2]
[343665511,1732813833110,-169.04,9.997e-05,2]
[343665512,1732813833119,-500.0,9.997e-05,2]
[343665513,1732813833129,-585.44,9.997e-05,2]
[343665514,1732813833139,-586.3,9.997e-05,2]
[343665515,1732813833148,-500.0,9.997e-05,2]
[343665516,1732813833157,-500.0,9.997e-05,2]
[343665517,1732813833167,-500.0,9.997e-05,2]
[343665518,1732813833176,-500.0,9.997e-05,2]
[343665519,1732813833185,-525.86,9.997e-05,2]
[343665520,1732813833195,-487.09,9.997e-05,2]
[343665521,1732813833204,-500.0,9.997e-05,2]
[343665522,1732813833215,-309.74,9.997e-05,2]
[343665523,1732813833224,-545.4,9.997e-05,2]
[343665524,1732813833234,-504.89938384,9.997e-05,2]
[343665525,1732813833244,-500.0,9.997e-05,2]
[343665526,1732813833254,-500.0,9.997e-05,2]
[343665527,1732813833264,-500.0,9.997e-05,2]
[343665528,1732813833274,-524.7,9.997e-05,2]
[343665529,1732813833284,-500.0,9.997e-05,2]
[343665530,1732813833294,-500.0,9.997e-05,2]
[343665531,1732813833304,-500.0,9.997e-05,2]
[343665532,1732813833315,-500.0,9.997e-05,2]
[343665533,1732813833325,-500.0,9.997e-05,2]
[343665534,1732813833345,-500.0,9.997e-05,2]
[343665535,1732813833355,-500.0,9.997e-05,2]
[343665536,1732813833365,-363.92,9.997e-05,2]
[343665537,1732813833376,-500.0,9.997e-05,2]
[343665538,1732813833386,-500.0,9.997e-05,2]
[343665539,1732813833396,-500.0,9.997e-05,2]
[343665540,1732813833406,-617.68,9.997e-05,2]
[343665541,1732813833417,-180.01,9.997e-05,2]
[343665542,1732813833427,-500.0,9.997e-05,2]
[343665543,1732813833437,-500.0,9.997e-05,2]
[343665544,1732813833447,-500.0,9.997e-05,2]
[343665545,1732813833456,-500.0,9.997e-05,2]
[343665546,1732813833467,-500.0,9.997e-05,2]
[343665547,1732813833477,-500.0,9.997e-05,2]
[343665548,1732813833486,-260.08,9.997e-05,2]
[343665549,1732813833496,-541.47,9.997e-05,2]
[343665550,1732813833506,-500.0,9.997e-05,2]
[343665551,1732813833515,-500.0,9.997e-05,2]
[343665552,1732813833525,-500.0,9.997e-05,2]
[343665553,1732813833535,-599.43,9.997e-05,2]
[343665554,1732813833545,-490.17338177,9.997e-05,2]
[343665555,1732813833555,-500.0,9.997e-05,2]
[343665556,1732813833564,-486.54,9.997e-05,2]
[343665557,1732813833574,-500.0,9.997e-05,2]
[343665558,1732813833588,-500.0,9.997e-05,2]
[343665559,1732813833597,-195.3,9.997e-05,2]
[343665560,1732813833607,-500.0,9.997e-05,2]
[343665561,1732813833618,-415.17,9.997e-05,2]
[343665562,1732813833627,-578.83,9.997e-05,2]
[343665563,1732813833637,-500.0,9.997e-05,2]
[343665564,1732813833646,-500.0,9.997e-05,2]
[343665565,1732813833656,-500.0,9.997e-05,2]
[343665566,1732813833666,-500.0,9.997e-05,2]
[343665567,1732813833676,-500.0,9.997e-05,2]
[343665568,1732813833685,-500.0,9.997e-05,2]
[343665569,1732813833695,-500.0,9.997e-05,2]
[343665570,1732813833705,-500.0,9.997e-05,2]
[343665571,1732813833714,-215.45,9.997e-05,2]
[343665572,1732813833724,-232.15327375,9.997e-05,2]
[343665573,1732813833734,-500.0,9.997e-05,2]
[343665574,1732813833744,-488.89180262,9.997e-05,2]
[343665575,1732813833754,-500.0,9.997e-05,2]
[343665576,1732813833765,-500.0,9.997e-05,2]
[343665577,1732813833775,-500.0,9.997e-05,2]
[343665578,1732813833785,-469.12,9.997e-05,2]
[343665579,1732813833796,-500.0,9.997e-05,2]
[343665580,1732813833806,-502.45470541,9.997e-05,2]
[343665581,1732813833816,-276.04,9.997e-05,2]
[343665582,1732813833825,-500.0,9.997e-05,2]
[343665583,1732813833838,-500.0,9.997e-05,2]
[343665584,1732813833848,-500.0,9.997e-05,2]
[343665585,1732813833858,-353.73,9.997e-05,2]
[343665586,1732813833868,-500.0,9.997e-05,2]
[343665587,1732813833878,-500.0,9.997e-05,2]
[343665588,1732813833889,-500.0,9.997e-05,2]
[343665589,1732813833899,-500.0,9.997e-05,2]
[343665590,1732813833909,-179.88,9.997e-05,2]
[343665591,1732813833919,-500.0,9.997e-05,2]
[343665592,1732813833929,-500.0,9.997e-05,2]
[343665593,1732813833940,-317.02,9.997e-05,2]
[343665594,1732813833950,-500.0,9.997e-05,2]
[343665595,1732813833961,-500.0,9.997e-05,2]
[343665596,1732813833971,-500.0,9.997e-05,2]
[343665597,1732813833982,-580.89,9.997e-05,2]
[343665598,1732813833992,-500.0,9.997e-05,2]
[343665599,1732813834002,-281.1,9.997e-05,2]
[343665600,1732813834013,-500.0,9.997e-05,2]
[343665601,1732813834025,-500.0,9.997e-05,2]
[343665602,1732813834035,-500.0,9.997e-05,2]
[343665603,1732813834046,-500.0,9.997e-05,2]
[343665604,1732813834056,-577.99,9.997e-05,2]
[343665605,1732813834066,-500.0,9.997e-05,2]
[343665606,1732813834076,-500.0,9.997e-05,2]
[343665607,1732813834088,-500.0,9.997e-05,2]
[343665608,1732813834097,-500.0,9.997e-05,2]
[343665609,1732813834107,-282.54,9.997e-05,2]
[343665610,1732813834117,-256.0,9.997e-05,2]
[343665611,1732813834127,-510.45850215,9.997e-05,2]
[343665612,1732813834137,-500.0,9.997e-05,2]
[343665613,1732813834148,-482.98,9.997e-05,2]
[343665614,1732813834157,-627.27,9.997e-05,2]
[343665615,1732813834167,-500.0,9.997e-05,2]
[343665616,1732813834176,-500.0,9.997e-05,2]
[343665617,1732813834185,-500.0,9.997e-05,2]
[343665618,1732813834195,-362.18,9.997e-05,2]
[343665619,1732813834205,-464.63,9.997e-05,2]
[343665620,1732813834215,-500.0,9.997e-05,2]
[343665621,1732813834224,-512.91,9.997e-05,2]
[343665622,1732813834234,-500.0,9.997e-05,2]
[343665623,1732813834248,-500.0,9.997e-05,2]
[343665624,1732813834258,-286.15,9.997e-05,2]
[343665625,1732813834267,-599.89,9.997e-05,2]
[343665626,1732813834277,-644.75,9.997e-05,2]
[343665627,1732813834287,-500.0,9.997e-05,2]
[343665628,1732813834297,-189.84731928,9.997e-05,2]
[343665629,1732813834313,-500.0,9.997e-05,2]
[343665630,1732813834324,-500.0,9.997e-05,2]
[343665631,1732813834337,-500.0,9.997e-05,2]
[343665632,1732813834346,-500.0,9.997e-05,2]
[343665633,1732813834356,-168.19,9.997e-05,2]
[343665634,1732813834366,-500.0,9.997e-05,2]
[343665635,1732813834376,-500.0,9.997e-05,2]
[343665636,1732813834386,-500.0,9.997e-05,2]
[343665637,1732813834396,-568.31,9.997e-05,2]
[343665638,1732813834405,-500.0,9.997e-05,2]
[343665639,1732813834415,-500.0,9.997e-05,2]
[343665640,1732813834425,-500.0,9.997e-05,2]
[343665641,1732813834435,-500.0,9.997e-05,2]
[343665642,1732813834445,-500.0,9.997e-05,2]
[343665643,1732813834455,-500.0,9.997e-05,2]
[343665644,1732813834465,-500.0,9.997e-05,2]
[343665645,1732813834475,-470.7,9.997e-05,2]
[343665646,1732813834484,-500.0,9.997e-05,2]
[343665647,1732813834494,-500.0,9.997e-05,2]
[343665648,1732813834504,-297.91,9.997e-05,2]
[343665649,1732813834514,-500.0,9.997e-05,2]
[343665650,1732813834523,-371.28,9.997e-05,2]
[343665651,1732813834533,-500.0,9.997e-05,2]
[343665652,1732813834542,-500.0,9.997e-05,2]
[343665653,1732813834552,-500.0,9.997e-05,2]
[343665654,1732813834561,-500.0,9.997e-05,2]
[343665655,1732813834571,-635.66,9.997e-05,2]
[343665656,1732813834583,-500.0,9.997e-05,2]
[343665657,1732813834593,-456.48,9.997e-05,2]
[343665658,1732813834603,-500.0,9.997e-05,2]
[343665659,1732813834613,-500.0,9.997e-05,2]
[343665660,1732813834622,-636.3,9.997e-05,2]
[343665661,1732813834632,-500.0,9.997e-05,2]
[343665662,1732813834642,-500.0,9.997e-05,2]
[343665663,1732813834652,-500.0,9.997e-05,2]
[343665664,1732813834662,-500.0,9.997e-05,2]
[343665665,1732813834672,-523.16,9.997e-05,2]
[343665666,1732813834681,-500.0,9.997e-05,2]
[343665667,1732813834691,-500.0,9.997e-05,2]
[343665668,1732813834701,-500.0,9.997e-05,2]
[343665669,1732813834710,-553.95,9.997e-05,2]
[343665670,1732813834722,-500.0,9.997e-05,2]
[343665671,1732813834734,-537.23,9.997e-05,2]
[343665672,1732813834743,-500.0,9.997e-05,2]
[343665673,1732813834753,-500.0,9.997e-05,2]
[343665674,1732813834764,-500.0,9.997e-05,2]
[343665675,1732813834774,-500.0,9.997e-05,2]
[343665676,1732813834783,-502.33963374,9.997e-05,2]
[343665677,1732813834794,-290.53,9.997e-05,2]
[343665678,1732813834805,-500.0,9.997e-05,2]
[343665679,1732813834815,-500.0,9.997e-05,2]
[343665680,1732813834825,-500.0,9.997e-05,2]
[343665681,1732813834839,-500.0,9.997e-05,2]
[343665682,1732813834849,-500.0,9.997e-05,2]
[343665683,1732813834859,-500.0,9.997e-05,2]
[343665684,1732813834869,-500.0,9.997e-05,2]
[343665685,1732813834879,-500.0,9.997e-05,2]
[343665686,1732813834889,-500.0,9.997e-05,2]
[343665687,1732813834898,-500.0,9.997e-05,2]
[343665688,1732813834909,-398.71,9.997e-05,2]